Cogmind - Beta 14 @@@ ROGUE MODE // 2024.11.27 @ 12:37:19 Player: Seere Result: Destroyed by L-31 Rogue with Katana Performance ------------- Evolutions (1) 500 Regions Visited (2) 400 Robots Destroyed (54) 270 Value Destroyed (1415) 1415 Prototype IDs (1) 20 Alien Tech Used (0) 0 Bonus (97) 97 TOTAL SCORE: 2702 Bonus ------- High Alert Combat Kills 97 Cogmind --------- Core Integrity 0/400 Matter 235/300 Energy 125/125 System Corruption 0% Temperature Cool (0) Movement Treading (240) Ox1 Location -9/Materials Parts ------- > --- POWER (2) -------- Light Ion Engine > --- PROPULSION (2) --- Light Treads > --- UTILITY (3) ------ Large Storage Unit Salvage Targeting Computer Targeting Computer > --- WEAPON (2) ------- Improved Light Cannon Improved Datajack > --- INVENTORY (15) --- Aluminum Leg Light Armor Plating EM Pulse Gun EM Pulse Gun Medium Laser Beam Rifle Beam Rifle Particle Gun Particle Gun Grenade Launcher Peak State ------------ > --- POWER ------------ Deuterium Engine Deuterium Engine > --- PROPULSION ------- Light Treads Light Treads > --- UTILITY ---------- Large Storage Unit Visual Processing Unit Visual Processing Unit > --- WEAPON ----------- Medium Laser Advanced EMP Blaster > --- INVENTORY -------- Sensor Array Small Laser Small Laser Heavy Assault Rifle Improved Light Cannon Grenade Launcher Improved Datajack [Rating: 19] Favorites ----------- Power Improved Ion Engine Engine Improved Ion Engine Propulsion Aluminum Leg Treads Light Treads Leg Aluminum Leg Wheel Compact Wheel Utility Large Storage Unit Device Sensor Array Storage Large Storage Unit Processor Visual Processing Unit Protection Weapon Shielding Weapon Improved Light Cannon Energy Gun Medium Laser Ballistic Gun Heavy Assault Rifle Ballistic Cannon Improved Light Cannon Launcher Grenade Launcher Special Melee Weapon Improved Datajack Build | -11 -10 -9 ------- Run | Yrd Mat Mat Slots Evolved 2 | . . 2 Power 1 | . . 1 Propulsion . | . . . Utility 1 | . . 1 Weapon . | . . . Parts Attached 62 | 7 15 40 Power 9 | 1 1 7 Engine 9 | 1 1 7 Core . | . . . Reactor . | . . . Propulsion 14 | 3 4 7 Treads 4 | . . 4 Leg 9 | 2 4 3 Wheel 1 | 1 . . Hover . | . . . Flight . | . . . Utility 12 | 1 6 5 Device 2 | . 1 1 Storage 4 | 1 3 . Processor 5 | . 1 4 Hackware . | . . . Protection 1 | . 1 . Artifact . | . . . Weapon 27 | 2 4 21 Energy Gun 9 | 1 2 6 Energy Cannon . | . . . Ballistic Gun 4 | 1 1 2 Ballistic Cannon 3 | . . 3 Launcher 8 | . 1 7 Special Weapon . | . . . Impact Weapon . | . . . Slashing Weapon . | . . . Piercing Weapon . | . . . Special Melee Weapon 3 | . . 3 Unidentified Prototypes 1 | . . 1 Parts Lost 13 | . 3 10 Power 3 | . 1 2 Propulsion 6 | . 2 4 Utility 1 | . . 1 Weapon 3 | . . 3 Highest Loss Streak 4 | . 1 4 To Critical Strikes . | . . . Average Slot Usage (%) 82 | . 87 80 Engine 12 | . 12 12 Treads 5 | . . 7 Leg 13 | . 24 9 Device 1 | . . 2 Storage 11 | . 14 11 Processor 12 | . 3 15 Protection 2 | . 3 1 Energy Gun 9 | . 19 5 Ballistic Gun 2 | . 3 1 Ballistic Cannon 6 | . . 9 Launcher 2 | . 4 1 Special Melee Weapon 2 | . . 2 Peak Build Rating 19 | 6 8 19 Average Rating 9 | 3 6 11 On Entrance 4 | . 6 7 Naked Turns . | . . . Heaviest Build 43 | 12 30 43 Greatest Support 40 | 20 20 40 Greatest Overweight (x) 12 | 3 1 12 Average Overweight (x) 1 | . . 1 Largest Inventory Capacity 25 | 8 25 15 Average Capacity 13 | 6 11 15 Most Carried 11 | 5 3 11 Average Carried 3 | 1 1 4 Final Capacity 15 | 8 15 15 Final Carried 10 | . 3 10 Class Distribution -------------------- 70% | Mutant 29% | Scavenger-Mutant Dominant Class ---------------- Mutant | -10/Materials Mutant | -9/Materials Resources | -11 -10 -9 ----------- Run | Yrd Mat Mat Matter Collected 1453 | 169 305 979 Remotely . | . . . Salvage Created 1226 | . 327 899 Parts 105 | . 23 82 Haulers Intercepted . | . . . Recyclers Shooed . | . . . Parts Field Recycled . | . . . Retrieved Matter . | . . . Parts Self-Destructed . | . . . Prevented . | . . . Kills | -11 -10 -9 ------- Run | Yrd Mat Mat Combat Hostiles Destroyed 46 | . 10 36 Guns 12 | . 6 6 Cannons 15 | . . 15 AOE 18 | . 4 14 Classes Destroyed 8 | . 3 5 Builder 1 | . . 1 Mechanic 1 | . . 1 Operator 1 | . . 1 Watcher 5 | . 1 4 Swarmer 17 | . 3 14 Grunt 21 | . 7 14 Brawler 1 | . . 1 Sentry 7 | . . 7 Best Kill Streak 8 | . 3 8 Combat Bots Only 7 | . 3 7 Max Kills in Single Turn 4 | . 2 4 Gunslinging . | . . . Exploded 4 | . 2 4 Melee . | . . . Uniques/NPCs Destroyed . | . . . Combat | -11 -10 -9 -------- Run | Yrd Mat Mat Hostile Shots Fired 300 | . 61 239 Missed 104 | . 21 83 Damage Taken 2415 | . 486 1929 Core 544 | . 132 412 Absorbed by Shields . | . . . Redirected to Shielding 50 | . 2 48 Regen/Repaired (Parts) 21 | . . 21 Core Remaining (%) 73 | 100 47 . Volleys Fired 149 | . 44 105 Largest 2 | . 2 2 Hottest 95 | . 90 95 Shots Fired 264 | . 88 176 Gun 146 | . 84 62 Cannon 96 | . . 96 Launcher 22 | . 4 18 Special . | . . . Kinetic 149 | . 32 117 Thermal 93 | . 52 41 Explosive 22 | . 4 18 Electromagnetic . | . . . Robot Hit Streak 15 | . 15 8 Robot Miss Streak 4 | . 3 4 Penetration Max . | . . . Secondary Targets . | . . . Shots Hit Robots 154 | . 55 99 Core Hits 81 | . 21 60 Critical Kills . | . . . Critical Parts Destroyed . | . . . Critical Strikes 7 | . 2 5 Burn 5 | . 2 3 Blast 2 | . . 2 Melee Attacks . | . . . Impact . | . . . Slashing . | . . . Piercing . | . . . Sneak Attacks . | . . . Combat Hostiles . | . . . Follow-up Attacks . | . . . Damage Inflicted 3693 | . 834 2859 Guns 1173 | . 657 516 Cannons 1108 | . . 1108 Explosions 1412 | . 177 1235 Melee . | . . . Ramming . | . . . Kinetic 1550 | . 245 1305 Thermal 731 | . 412 319 Explosive 1412 | . 177 1235 Electromagnetic . | . . . Impact . | . . . Slashing . | . . . Piercing . | . . . Highest Corruption . | . . . Average Corruption . | . . . Corruption Purged . | . . . Corruption Blocked . | . . . Overload Shots . | . . . Overflow Damage 19 | . . 19 Projectiles 2 | . . 2 Explosions 17 | . . 17 Melee . | . . . Knockbacks 12 | . . 12 Impact . | . . . Kinetic 12 | . . 12 Secondary . | . . . Self-Inflicted Damage 30 | . . 30 Shots 1 | . . 1 Rammed . | . . . Targets Rammed . | . . . Kicked . | . . . Crushed . | . . . Highest Temperature 195 | . 180 195 Average Temperature 35 | . 36 35 Received Heat Transfer 930 | . 258 672 Siege Activations . | . . . Robots Corrupted . | . . . Combat Hostiles . | . . . Parts Fried . | . . . Impact Corruptions . | . . . Robots Melted 1 | . . 1 Combat Hostiles 1 | . . 1 Parts Melted 1 | . 1 . Heat Transferred 2445 | . 1298 1147 Parts Sabotaged . | . . . Parts Stolen . | . . . Parts Stripped . | . . . Power Chain Reactions . | . . . Alert | -11 -10 -9 ------- Run | Yrd Mat Mat Peak Influence 606 | . 172 606 Initial 60 | . . 60 Average 288 | . 97 371 Maximum Alert Level 2 | . . 2 Low Security (%) 37 | 100 100 11 Level 1 20 | . . 28 Level 2 42 | . . 59 Level 3 . | . . . Level 4 . | . . . Level 5 . | . . . High Security . | . . . Max Security . | . . . Squads Dispatched 8 | . 3 5 Investigation 3 | . 2 1 Extermination . | . . . Reinforcement 4 | . 1 3 Assault 1 | . . 1 Garrison . | . . . Intercept . | . . . Searches Triggered . | . . . Construction Impeded 1 | . . 1 Haulers Reinforced . | . . . Active Scanning Responses . | . . . Cargo Convoy Interrupts . | . . . Stealth | -11 -10 -9 --------- Run | Yrd Mat Mat Distress Signals 6 | . 2 4 Communications Jammed . | . . . Distress Signals . | . . . Times Spotted 73 | . 16 57 Peak Tracking Total 6 | . 5 6 Tactical Retreats 3 | . 1 2 Traps | -11 -10 -9 ------- Run | Yrd Mat Mat Traps Triggered 2 | . 1 1 Indirectly . | . . . Trap Hack Attempts . | . . . Triggered . | . . . Disarmed . | . . . Reprogrammed . | . . . Reused . | . . . Traps Extracted . | . . . Installed . | . . . Triggered . | . . . Machines | -11 -10 -9 ---------- Run | Yrd Mat Mat Machines Disabled 4 | . . 4 Max in Single Turn 1 | . . 1 Machines Repaired . | . . . Machines Dismantled . | . . . Machines Sabotaged . | . . . Overloaded Fab Kills . | . . . Hacking | -11 -10 -9 --------- Run | Yrd Mat Mat Machines Accessed 5 | . 1 4 Terminals 3 | . 1 2 Fabricators . | . . . Repair Stations 1 | . . 1 Recycling Units 1 | . . 1 Scanalyzers . | . . . Garrison Access . | . . . Total Hacks 22 | . 5 17 Successful 17 | . 3 14 Failed 5 | . 2 3 Catastrophic . | . . . Database Lockouts . | . . . Manual . | . . . Terminals 12 | . 5 7 Fabricators . | . . . Repair Stations 3 | . . 3 Recycling Units 7 | . . 7 Scanalyzers . | . . . Garrison Access . | . . . Terminal Hacks 8 | . 3 5 Record 6 | . 2 4 Alert Level 2 | . 1 1 Fabricator Hacks . | . . . Repair Station Hacks 3 | . . 3 Scan Component 2 | . . 2 Repair 1 | . . 1 Recycling Unit Hacks 6 | . . 6 Recycle Component 4 | . . 4 Process 1 | . . 1 Report Inventory 1 | . . 1 Scanalyzer . | . . . Garrison Access Hacks . | . . . Unauthorized Hacks . | . . . Terminals . | . . . Fabricators . | . . . Repair Stations . | . . . Recycling Units . | . . . Scanalyzers . | . . . Garrison Access . | . . . Data Cores Recovered . | . . . Used . | . . . Hacking Detections 3 | . 1 2 Full Trace Events 2 | . 1 1 Feedback Events . | . . . Feedback Blocked . | . . . Robot Schematics Acquired . | . . . Robots Built . | . . . Authchips . | . . . Time . | . . . Total Robot Build Rating . | . . . Part Schematics Acquired . | . . . Parts Built . | . . . Authchips . | . . . Time . | . . . Total Part Build Rating . | . . . Parts Repaired 1 | . . 1 Time 26 | . . 26 Parts Recycled 4 | . . 4 Recycled Matter 493 | . . 493 Retrieved Matter . | . . . Retrieved Components . | . . . Parts Scanalyzed . | . . . Part Schematics Acquired . | . . . Parts Damaged . | . . . Bothacking | -11 -10 -9 ------------ Run | Yrd Mat Mat Used RIF Installer . | . . . Robots Hacked . | . . . Non-combat . | . . . Combat . | . . . Robot Hacks Applied . | . . . Relay Couplers Released . | . . . Fabnet Peak Effective % . | . . . Robots Rewired . | . . . Allies Hacked . | . . . Hacks Repelled . | . . . Allies | -11 -10 -9 -------- Run | Yrd Mat Mat Total Allies . | . . . Largest Group . | . . . Highest-Rated Group . | . . . Highest-Rated Ally . | . . . Total Orders . | . . . Ally Attacks . | . . . Total Damage . | . . . Kills . | . . . Allies Corrupted . | . . . Allies Melted . | . . . Intel | -11 -10 -9 ------- Run | Yrd Mat Mat Robot Analysis Total . | . . . Derelict Logs Recovered . | . . . Drone Launches . | . . . Drone Recoveries . | . . . Exploration | -11 -10 -9 ------------- Run | Yrd Mat Mat Turns Passed 2394 | 64 639 1691 Spaces Moved 903 | 46 281 576 Core 44 | 28 . 16 Treads 269 | . . 269 Legs 590 | 18 281 291 Wheels . | . . . Hover . | . . . Flight . | . . . Fastest Speed 50 | 50 120 160 Average Speed 203 | 93 167 228 Slowest Speed 650 | 200 190 650 Overloaded Moves . | . . . Propulsion Burnouts . | . . . Robots Hopped . | . . . Cave-ins Triggered . | . . . Exploration Rate (%) 26 | 3 35 42 Regions Visited 2 Branch Regions . Pre-discovered Areas . | . . . Known Exits Taken . | . . . Unknown Exits Taken 2 | 1 1 . Scrap Searched . | . . . Spaces Dug . | . . . Terrain Destroyed 117 | . 24 93 Melee . | . . . Projectile 2 | . . 2 AOE 115 | . 24 91 Terrain Rammed . | . . . Walls Destroyed . | . . . Machines Disabled . | . . . Actions | -11 -10 -9 --------- Run | Yrd Mat Mat Total 1193 | 68 361 764 Wait 5 | 5 . . Move 901 | 45 280 576 Hop . | . . . Pick Up 56 | 8 14 34 Fast Attach 1 | 1 . . Attach 27 | 6 8 13 Detach 2 | . 2 . Swap 34 | . 7 27 Drop 18 | 3 6 9 Fire 149 | . 44 105 Melee . | . . . Ram . | . . . Kick . | . . . Crush . | . . . Escape Stasis . | . . . Rewire . | . . . Trap . | . . . Miscellaneous . | . . . Route ------- -11/Scrapyard -10/Materials -9/Materials (discovered 2 exits: [*Mat] / [*Min]) History --------- Turn | Location | Event 33 | -11/Scrapyard | Discovered new exit (range 16) 65 | -11/Scrapyard | Entered Materials 300 | -10/Materials | Build established: Mutant 348 | -10/Materials | Core integrity fell below 50% 578 | -10/Materials | Discovered new exit (range 11) 704 | -10/Materials | Entered another Materials area 704 | -9/Materials | Evolved 2 slots: Power x1, Utility x1 876 | -9/Materials | Discovered new exit (range 15) 1348 | -9/Materials | Core integrity fell below 50% 1375 | -9/Materials | Build established: Scavenger-Mutant 1507 | -9/Materials | Lost 4 parts (2n2w) 1936 | -9/Materials | Discovered new exit (range 10) 2277 | -9/Materials | Core integrity fell below 20% 2304 | -9/Materials | First assault squad dispatched 2306 | -9/Materials | Destroyed 7 combat bots 2359 | -9/Materials | Build established: Mutant 2361 | -9/Materials | Repaired Lgt. Ion Engine 2395 | -9/Materials | Destroyed by L-31 Rogue with Katana Last Messages --------------- 02366_ G-34 Mercenary unfolds itself. 02366_ L-31 Rogue unfolds itself. 02366_ I-25 Savior unfolds itself. 02369_ G-47 Trooper knocked back. 02369_ G-47 Trooper destroyed. 02374_ Lgt. Treads severed. 02375_ L-31 Rogue knocked back. 02376_ U-05 Engineer builds a Wall. 02377_ U-05 Engineer builds a Door. 02377_ U-05 Engineer lays Concrete. 02377_ G-34 Mercenary destroyed. 02378_ U-05 Engineer builds a Wall. 02382_ U-05 Engineer lays Concrete. 02384_ L-31 Rogue knocked back. 02385_ Acquired 1 matter. 02385_ U-05 Engineer lays Concrete. 02390_ L-31 Rogue knocked back. 02391_ U-05 Engineer lays Concrete. 02394_ G-34 Mercenary destroyed. 02394_ U-05 Engineer lays Concrete. Map ----- +----------------------------------------------------+ | ????????????????????????????? | | ????????????????????????????? | | ????????????????????????????? | | ????????????????????????????? | | ????????????????????????????? | | ????????????????????????????? | | ????????????????????????????? | | ????????????????????????????? | | ????????????????????????????? | | ????????????????????????????? | | ?????? ????????????????????? | | ???? ????????????????????? | | ???? "???????????????????? | | ???? T???????????????????? | | ????? "???????????????????? | | ????? #???????????????????? | | ????? #???????????????????? | | ?????# #???????????????????? | | ?????# #???#+#?????????????? | | ?????# #???# #?###########?? | | ?????# #???# #?# ] """ #?? | | ?????# #???# ### %"R" #?? | | ###### ##### ### " " #?? | | # % u!%==%#?? | | "+%"""%"""%#?? | | % "" # """ """@#?? | | ######% "" """u"""l#?? | | ??# % # #?? | | ??## ###########?? | | ??# %= ##+#???????????? | | ??## % #??????????????? | | ###### #??????????????? | | #?## #??????????????? | | #?##% #??????????????? | | #### "" ############???? | | # #???? | | + #???? | | # #???? | | # # T"##########+#####??? | | # #"""#????# #??? | | # #####????# #??? | | ### #????????# #??? | | ??# #????????# """ #??? | | ??# #????????# """ #??? | | ??# #????????# """ #??? | | ??# #????????# "T" #??? | | ??# #????????# """ #??? | | ??# #????????###########??? | | ??#% +?????????????????????? | | ??# #?????????????????????? | +----------------------------------------------------+ Best States ------------- Heat Dissipation 28 Energy Generation 23 Energy Capacity 450 Matter Stores 300 Matter Capacity 300 Sight Range 18 Robot Scan Range 14 Terrain Scan Density 10 Weapon Shielding 33 Evasion (%) 55 Targeting Accuracy 5 Recoil Reduction 2 Salvage Targeting 1 Item Schematics ----------------- None Robot Schematics ------------------ None Fabricated ------------ Nothing Alien Tech Used ----------------- None Achievements -------------- It's Just You Significant Disruption Challenges ------------ None Game ------ Seed DimensionalPlasmaBay Manual? 0 Play Time 00:30:24 Cumulative 1.7 hours Start 2024.11.27 @ 12:10:12 End 2024.11.27 @ 12:37:19 Sessions 1 Manual Loads 0 Difficulty Rogue Special Mode None Game No. 3 Rogue 3 Adventurer 0 Explorer 0 Win Type - Total 0 Types 0/0/0/0/0/0/0/0/0 Lore% 0 Gallery% 3 Achievement% 5 Wizard Run 0 Options --------- Layout 1 ASCII 0 Keyboard 0 Movement Mouse Keybinds 0 Fullscreen 1 Font 24/Smallcaps Map View 50x35 Zoom Use 0% Tactical HUD 1 Map Filters NONE Filters NONE Steam 1 RUN: e9542330-b0bd-4b08-86d1-3c6cedd06cb6